bitfinex/quotes_SOLUSD_20240809
["timestamp","ask_amount","ask_price","bid_price","bid_amount"]
[1723213104400,0.12549,155.78,155.71,6.3385]
[1723213104604,0.12549,155.76,155.66,6.5156]
[1723213104806,0.25098,155.76,155.66,6.5156]
[1723213105003,0.25098,155.76,155.67,20.0]
[1723213105321,6.54599,155.75,155.66,6.5156]
[1723213105624,0.25098,155.74,155.66,6.5156]
[1723213105814,20.0,155.81,155.67,1.28454794]
[1723213106004,6.7965926,155.86,155.69,43.56]
[1723213106203,8.0252999,155.86,155.7,1.2838371]
[1723213106519,1.6092999,155.86,155.72,6.1089]
[1723213106720,6.4167,155.85,155.73,20.0]
[1723213106899,6.6708926,155.86,155.73,20.0]
[1723213107106,0.2548926,155.86,155.75,43.56]
[1723213107429,0.2548926,155.86,155.76,81.68294903]
[1723213107621,0.2548926,155.86,155.78,43.56]
[1723213107826,0.2548926,155.86,155.79,20.0]
[1723213108016,0.2548926,155.86,155.77,1.28337708]
[1723213108357,0.2548926,155.86,155.82,0.12549]
[1723213108525,0.2548926,155.86,155.82,46.53386757]
[1723213108697,16.4637652,155.98,155.84,43.56]
[1723213108902,43.56,156.01,155.85,21.28273443]
[1723213109325,43.56,156.01,155.86,45.0]
[1723213109623,6.67448229,156.0,155.87,1.28270389]
[1723213109800,6.4111,155.98,155.87,21.28270389]
[1723213110002,6.4111,155.98,155.87,20.0]
[1723213110198,43.56,156.01,155.87,20.0]
[1723213110399,6.4106,156.0,155.88,1.28260429]
[1723213110598,43.56,156.01,155.88,1.28260429]
[1723213110798,23.6176528,156.02,155.87,20.0]
[1723213110799,43.56,155.98,155.87,20.0]
[1723213111113,20.0,155.97,155.82,21.28287935]
[1723213111315,20.0,155.97,155.84,43.56]
[1723213111625,26.4107,155.99,155.85,20.0]
[1723213111829,6.4101,156.01,155.86,1.28251222]
[1723213112127,7.2586528,156.02,155.88,16.6006]
[1723213112322,7.2586528,156.02,155.89,66.28238746]
[1723213112516,6.4101,156.01,155.89,65.0]
[1723213112725,6.4107,155.99,155.89,20.0]
[1723213112905,1.3544073,155.98,155.89,20.0]
[1723213113102,0.8492528,156.02,155.89,20.0]
[1723213113330,0.8492528,156.02,155.9,1.28240911]
[1723213113535,0.8492528,156.02,155.9,46.28240911]
[1723213113717,6.4113,155.98,155.89,20.0]
[1723213114102,43.56,156.01,155.89,20.0]
[1723213114411,27.2589528,156.02,155.9,45.0]
[1723213114605,6.4099,156.01,155.9,45.0]
[1723213114808,6.4099,156.01,155.91,20.0]
[1723213114809,45.25098,156.0,155.91,20.0]
[1723213115033,0.12549,155.98,155.88,16.6006]
[1723213115239,1.6053873,155.98,155.83,43.56]
[1723213115406,0.12549,155.94,155.82,15.2016]
[1723213115612,0.12549,155.93,155.82,15.2016]
[1723213115920,1.7308773,155.93,155.82,15.2016]
[1723213116606,0.37647,155.93,155.82,15.2016]
[1723213117212,0.12549,155.92,155.83,20.0]
[1723213117405,0.37647,155.92,155.83,20.0]
[1723213117605,0.12549,155.91,155.83,20.0]
[1723213117832,0.25098,155.91,155.83,20.0]
[1723213118817,0.25098,155.91,155.82,15.2016]
[1723213118818,6.53989,155.9,155.82,15.2016]
[1723213119020,6.54069,155.88,155.79,6.0735]
[1723213119224,6.4164,155.85,155.76,15.2016]
[1723213119528,0.12549,155.87,155.77,1.28354632]
[1723213119734,0.12549,155.87,155.76,60.04482747]
[1723213119914,0.12549,155.87,155.76,58.7616]
[1723213119915,0.25098,155.87,155.76,58.7616]
[1723213120236,0.12549,155.86,155.76,58.7616]
[1723213120622,0.25098,155.86,155.77,20.0]
[1723213120824,0.25098,155.85,155.74,6.1861]
[1723213121027,0.12549,155.84,155.74,7.4696237]
[1723213121826,0.12549,155.84,155.74,6.1861]
[1723213122123,43.56,155.93,155.76,43.56]
[1723213122323,6.4131,155.93,155.79,43.56]
[1723213122521,6.4126,155.95,155.8,46.28309041]
[1723213122724,6.4135,155.92,155.8,45.0]
[1723213122925,6.4131,155.93,155.8,45.0]
[1723213123235,12.8342,155.96,155.81,20.0]
[1723213123439,12.8342,155.96,155.82,46.28290892]
[1723213123631,43.56,155.97,155.83,20.0]
[1723213123632,1.1053873,155.97,155.83,20.0]
[1723213123939,6.4136,155.92,155.83,20.0]
[1723213124330,1.1053873,155.95,155.79,43.56]
[1723213124331,6.4123,155.95,155.81,0.12549]
[1723213124644,1.1053873,155.94,155.82,43.56]
[1723213124935,7.5181873,155.94,155.83,65.0]
[1723213125111,6.4118,155.97,155.84,6.154]
[1723213125317,1.1053873,155.97,155.85,20.0]
[1723213125536,6.4122,155.96,155.85,20.0]
[1723213125744,0.12549,155.94,155.85,20.0]
[1723213126118,43.56,156.0,155.86,1.28276565]
[1723213126320,6.4106,155.99,155.86,1.28276565]
[1723213126551,6.4106,155.99,155.85,63.56]
[1723213126552,1.1053873,155.98,155.85,20.0]
[1723213126733,1.1053873,155.98,155.84,6.154]
[1723213126734,59.5889,155.97,155.84,6.154]
[1723213126935,1.1053873,155.96,155.84,6.154]
[1723213127255,43.56,155.94,155.79,6.154]
[1723213127461,6.4143,155.91,155.79,6.154]
[1723213127743,0.12549,155.89,155.79,6.154]
[1723213128714,1.2308773,155.89,155.79,6.154]
[1723213128950,0.12549,155.8,155.69,1.28347249]
[1723213129155,0.12549,155.77,155.62,2.60511137]
[1723213129316,0.12549,155.77,155.61,43.56]
[1723213129317,0.12549,155.73,155.61,43.56]
[1723213129525,0.12549,155.73,155.62,1.28450384]
[1723213129847,51.67068,155.77,155.62,1.28450384]
[1723213130057,6.4213,155.74,155.6,6.4084]
[1723213130223,43.68549,155.75,155.6,6.4084]
[1723213130224,0.12549,155.72,155.6,6.4084]
[1723213130443,44.7908773,155.72,155.6,6.4084]
[1723213130752,0.12549,155.7,155.6,6.4084]
[1723213131448,0.37647,155.71,155.6,7.6931936]
[1723213131831,0.12549,155.7,155.6,6.4084]
[1723213132043,0.12549,155.7,155.61,20.0]
[1723213132227,0.37647,155.71,155.61,20.0]
[1723213132228,0.37647,155.71,155.62,1.28473464]
[1723213132425,0.37647,155.71,155.61,20.0]
[1723213132932,6.42,155.77,155.61,64.84468708]
[1723213133137,0.12549,155.75,155.61,64.84468708]
[1723213133344,0.25098,155.75,155.61,64.84468708]
[1723213133529,15.848,155.8,155.64,43.56]
[1723213133725,15.848,155.8,155.65,66.28432226]
[1723213134037,6.4189,155.79,155.65,66.28432226]
[1723213134241,1.11804716,155.83,155.67,43.56]
[1723213134542,49.6435,155.84,155.68,46.40953122]
[1723213134543,56.0603,155.84,155.68,46.40953122]
[1723213134746,6.4178,155.82,155.69,20.25098]
[1723213134949,43.56,155.84,155.69,20.12549]
[1723213135122,43.56,155.84,155.7,45.0]
[1723213135123,6.4176,155.82,155.7,45.0]
[1723213135323,1.1053873,155.82,155.71,20.0]
[1723213135519,6.4189,155.79,155.71,20.0]
[1723213135724,6.4184,155.8,155.69,20.0]
[1723213135937,6.4184,155.8,155.68,0.12549]
[1723213135938,6.4195,155.78,155.68,20.0]
[1723213136145,6.4189,155.79,155.66,0.12549]
[1723213136340,6.54519,155.77,155.65,65.0]
[1723213136544,0.25098,155.76,155.66,46.28428465]
[1723213136733,0.25098,155.78,155.67,20.0]
[1723213136933,43.56,155.81,155.68,46.28405404]
[1723213137135,43.56,155.84,155.69,20.0]
[1723213137345,32.0319,155.87,155.69,20.0]
[1723213137346,43.56,155.81,155.69,20.0]
[1723213137556,6.4189,155.79,155.69,20.0]
[1723213137742,6.4189,155.79,155.65,21.28428399]
[1723213137946,6.4193,155.78,155.66,45.0]
[1723213138141,0.12549,155.77,155.66,45.0]
[1723213138360,45.50196,155.78,155.66,45.0]
[1723213138555,51.92136,155.78,155.66,45.0]
[1723213138944,0.12549,155.78,155.68,0.12549]
[1723213139145,6.4188,155.8,155.67,43.56]
[1723213139354,16.0419,155.85,155.68,46.53506755]
[1723213139355,51.34513679,155.84,155.68,46.53506755]
[1723213139542,51.34513679,155.84,155.69,20.0]
[1723213140239,51.54279,155.83,155.69,20.0]
[1723213140430,59.5521,155.87,155.71,6.4413]
[1723213140630,1.1053873,155.86,155.71,6.4413]
[1723213140938,43.56,155.84,155.72,20.0]
[1723213141144,22.67111718,155.87,155.72,20.0]
[1723213141145,66.23111718,155.87,155.72,20.0]
[1723213141331,65.9681,155.87,155.73,46.28385463]
[1723213141532,65.9681,155.87,155.74,21.28373608]
[1723213141831,6.4184,155.81,155.71,6.4413]
[1723213142032,6.418,155.81,155.72,20.0]
[1723213142357,1.1053873,155.8,155.65,6.4073]
[1723213142534,0.12549,155.79,155.65,6.4073]
[1723213142733,6.54509,155.78,155.65,6.4073]
[1723213143073,0.25098,155.79,155.66,43.56]
[1723213143234,6.4164,155.85,155.69,43.56]
[1723213143441,6.4164,155.85,155.7,1.2837509]
[1723213143736,6.4164,155.85,155.7,21.2837509]
[1723213143962,59.5521,155.87,155.71,45.25098]
[1723213144173,43.56,155.91,155.77,6.1601]
[1723213144459,15.7961,155.92,155.78,46.40871113]
[1723213144642,6.4138,155.92,155.78,46.40871113]
[1723213144831,6.4123,155.95,155.82,0.12549]
[1723213145033,259.2,155.98,155.82,66.53384453]
[1723213145262,43.56,155.99,155.84,59.0166]
[1723213145461,6.414,155.91,155.84,15.4566]
[1723213145757,1.1053873,155.98,155.83,1.40848284]
[1723213145758,6.4126,155.95,155.83,1.40848284]
[1723213146068,6.4126,155.95,155.83,46.40848284]
[1723213146234,6.4126,155.95,155.84,20.0]
[1723213146432,43.56,155.98,155.84,20.0]
[1723213146741,49.9711,155.98,155.85,46.28280039]
[1723213146940,6.4111,155.98,155.86,20.0]
[1723213147259,43.56,156.01,155.87,45.0]
[1723213147558,0.8492528,156.02,155.89,0.12549]
[1723213147738,0.8492528,156.02,155.91,16.5501]
[1723213147934,7.2586528,156.02,155.92,20.0]
[1723213148151,0.8492528,156.02,155.92,21.28236378]
[1723213148364,7.2587528,156.02,155.92,20.0]
[1723213148554,7.2587528,156.02,155.91,16.5501]
[1723213148555,1.1053873,156.01,155.91,16.5501]
[1723213148935,43.56,155.99,155.88,6.0849]
[1723213149138,43.56,155.96,155.88,6.0849]
[1723213149367,43.56,155.99,155.85,16.233]
[1723213149534,45.50196,155.98,155.86,1.28262575]
[1723213149728,45.50196,155.98,155.85,17.51562587]
[1723213150371,51.91306,155.98,155.86,65.0]
[1723213151357,45.50196,155.98,155.86,65.0]
[1723213151578,44.4092528,156.02,155.87,0.12549]
[1723213151859,0.8492528,156.02,155.88,43.56]
[1723213152039,0.8492528,156.02,155.89,1.4077872]
[1723213152235,1.1053873,156.01,155.89,65.0]
[1723213152441,0.8492528,156.02,155.89,65.0]
[1723213153037,0.8492528,156.02,155.91,50.1031]
[1723213153248,6.41,156.01,155.92,20.0]
[1723213153541,1.1053873,156.01,155.91,6.5431]
[1723213153744,6.4102,156.0,155.91,6.5431]
[1723213154056,1.1053873,155.99,155.91,6.5431]
[1723213154256,6.4102,156.0,155.91,6.5431]
[1723213154461,6.41,156.01,155.91,6.5431]
[1723213154643,44.4092528,156.02,155.91,6.5431]
[1723213154644,0.12549,155.96,155.91,6.5431]
[1723213154840,1.6073473,155.96,155.86,6.4087]
[1723213155153,0.12549,155.94,155.86,6.4087]
[1723213155353,0.25098,155.94,155.86,6.4087]
[1723213155552,0.12549,155.93,155.86,6.4087]
[1723213155755,1.1053873,155.92,155.79,59.0057]
[1723213155959,0.12549,155.89,155.8,6.3775]
[1723213156139,7.7711673,155.89,155.8,6.3775]
[1723213156334,0.12549,155.88,155.8,7.66089775]
[1723213156561,0.12549,155.88,155.8,6.3775]
[1723213156861,43.56,155.94,155.8,7.66065139]
[1723213157070,45.50196,155.93,155.8,7.66065139]
[1723213157263,89.06196,155.93,155.8,6.3775]
[1723213157567,45.50196,155.93,155.8,7.6606102]
[1723213157737,0.50196,155.93,155.8,7.6606102]
[1723213158243,0.50196,155.93,155.8,7.66047015]
[1723213158449,6.91526,155.93,155.8,7.66047015]
[1723213158664,45.0,155.92,155.81,65.0]
[1723213158851,0.50196,155.91,155.81,65.0]
[1723213159250,8.0213473,155.91,155.81,65.0]
[1723213159451,0.50196,155.91,155.81,65.0]
[1723213159640,1.1053873,155.9,155.81,20.0]
[1723213159964,1.1053873,155.9,155.73,2.5007305]
[1723213159965,0.50196,155.89,155.74,6.3659]
[1723213160140,0.12549,155.86,155.74,6.3659]
[1723213160347,0.12549,155.83,155.74,6.3659]
[1723213160551,45.50196,155.83,155.74,6.3659]
[1723213161667,45.50196,155.83,155.75,20.0]
[1723213162339,0.37647,155.83,155.75,20.0]
[1723213162540,43.56,155.87,155.75,20.0]
[1723213162772,7.5214873,155.86,155.75,20.0]
[1723213163064,43.56,155.9,155.76,1.28370479]
[1723213163281,259.2,155.91,155.77,43.81098]
[1723213163440,2.60713415,155.95,155.78,66.40867386]
[1723213163777,6.4124,155.95,155.81,0.12549]
[1723213163946,1.1053873,155.98,155.82,6.569]
[1723213164144,302.76,155.99,155.83,66.28288022]
[1723213164452,302.76,155.99,155.84,15.6316]
[1723213164864,1.1053873,155.98,155.85,20.0]
[1723213165169,6.4123,155.95,155.85,20.0]
[1723213165847,302.76,155.99,155.85,20.0]
[1723213166550,6.4119,155.96,155.85,20.0]
[1723213166969,43.56,155.99,155.85,21.28271556]
[1723213167266,6.4107,155.99,155.86,46.28263337]
[1723213167470,44.4092528,156.02,155.87,20.0]
[1723213167672,50.8190528,156.02,155.88,46.5333396]
[1723213167854,50.8190528,156.02,155.89,20.0]
[1723213168051,1.1053873,156.01,155.89,20.0]
[1723213168252,43.56,155.99,155.89,20.0]
[1723213168450,43.56,155.99,155.86,0.12549]
[1723213168451,49.971,155.99,155.86,0.12549]
[1723213168655,6.4112,155.98,155.86,45.12549]
[1723213168967,6.4119,155.96,155.87,20.0]
[1723213169275,43.56,155.99,155.85,20.0]
[1723213169276,0.12549,155.95,155.85,20.0]
[1723213169450,0.12549,155.95,155.85,21.282651]
[1723213169655,0.12549,155.95,155.85,20.0]
[1723213170061,1.3563673,155.95,155.84,15.6316]
[1723213170261,0.12549,155.93,155.84,15.6316]
[1723213170972,0.25098,155.94,155.84,15.6316]
[1723213171147,0.25098,155.95,155.84,16.91447399]
[1723213171552,0.25098,155.95,155.85,65.0]
[1723213172174,0.25098,155.95,155.86,1.28270997]
[1723213172388,0.12549,155.94,155.85,65.0]
[1723213172580,1.3563673,155.94,155.85,20.0]
[1723213172760,0.25098,155.95,155.86,1.28286664]
[1723213172954,95.5959,156.08,155.87,1.40814226]
[1723213172955,10.04974635,156.01,155.87,1.40814226]
[1723213173259,0.8492528,156.02,155.9,6.1468]
[1723213173464,1.1053873,156.01,155.91,20.0]
[1723213174258,6.4103,156.0,155.91,20.0]
[1723213174480,1.1053873,156.0,155.9,6.1468]
[1723213174682,0.12549,155.98,155.9,6.1468]
[1723213174872,6.4122,155.96,155.9,6.1468]
[1723213175077,1.4818573,155.95,155.9,6.1468]
[1723213175258,0.37647,155.95,155.9,6.1468]
[1723213175462,1.4818573,155.95,155.9,6.1468]
[1723213175669,0.12549,155.94,155.85,6.137]
[1723213175901,0.37647,155.95,155.85,6.137]
[1723213176075,0.12549,155.94,155.85,6.137]
[1723213176266,0.12549,155.9,155.85,6.137]
[1723213176472,1.2308773,155.94,155.85,6.137]
[1723213176473,6.53849,155.94,155.85,6.137]
[1723213176679,0.12549,155.92,155.85,6.137]
[1723213177190,6.53899,155.92,155.85,6.137]
[1723213177385,6.53899,155.92,155.8,6.1738]
[1723213177386,6.4162,155.86,155.8,6.1738]
[1723213177696,45.37647,155.91,155.76,6.1738]
[1723213177697,1.6073473,155.85,155.76,6.1738]
[1723213177862,0.12549,155.84,155.76,6.1738]
[1723213178661,0.12549,155.82,155.76,6.1738]
[1723213178870,0.12549,155.84,155.76,6.1738]
[1723213178871,0.37647,155.83,155.76,6.1738]
[1723213179065,0.12549,155.82,155.76,6.1738]
[1723213179393,0.25098,155.82,155.76,6.1738]
[1723213179570,0.12549,155.81,155.76,6.1738]
[1723213179901,0.25098,155.81,155.76,6.1738]
[1723213180080,0.12549,155.8,155.76,6.1738]
[1723213180391,0.37647,155.8,155.71,6.6385]
[1723213180690,0.12549,155.78,155.71,6.6385]
[1723213180863,0.12549,155.76,155.71,6.6385]
[1723213181064,1.4818573,155.76,155.68,16.4661]
[1723213181371,0.12549,155.75,155.66,6.0488]
[1723213181577,0.12549,155.72,155.63,15.8791]
[1723213181886,0.12549,155.72,155.61,16.63476345]
[1723213181887,0.12549,155.69,155.61,16.63476345]
[1723213182094,1.2308773,155.69,155.61,6.5815]
[1723213182403,0.12549,155.68,155.61,6.5815]
[1723213182891,0.12549,155.67,155.61,6.5815]
[1723213183084,0.37647,155.67,155.61,6.5815]
[1723213183284,0.12549,155.66,155.58,15.0522]
[1723213183472,0.25098,155.66,155.58,15.0522]
[1723213184178,0.25098,155.66,155.59,20.0]
[1723213184564,49.9818,155.72,155.6,1.28509612]
[1723213184765,43.68549,155.7,155.59,20.0]
[1723213184963,0.12549,155.67,155.57,20.0]
[1723213185182,45.50196,155.67,155.57,20.0]
[1723213185387,1.1053873,155.66,155.56,6.3839]
[1723213185698,0.12549,155.62,155.51,6.3839]
[1723213185904,1.3563673,155.62,155.51,6.3839]
[1723213186081,0.12549,155.6,155.51,6.3839]
[1723213186282,1.3563673,155.6,155.51,6.3839]
[1723213186464,0.12549,155.59,155.51,6.3839]
[1723213186670,0.37647,155.59,155.51,6.3839]
[1723213186977,0.25098,155.59,155.51,6.3839]
[1723213187177,0.25098,155.59,155.52,20.0]
[1723213188381,0.25098,155.58,155.52,20.0]
[1723213188582,0.25098,155.57,155.52,20.0]
[1723213188891,88.56,155.61,155.49,1.2858387]
[1723213189099,0.12549,155.6,155.49,1.2858387]
[1723213189285,16.0576,155.69,155.49,1.2858387]
[1723213189286,6.4248,155.65,155.49,44.8458387]
[1723213189474,51.4251,155.64,155.49,44.8458387]
[1723213189872,6.4254,155.63,155.49,44.8458387]
[1723213190175,89.6653873,155.62,155.5,20.0]
[1723213190390,89.6653873,155.62,155.48,15.9376]
[1723213190391,6.4268,155.6,155.49,20.0]
[1723213190570,46.1053873,155.59,155.49,20.0]
[1723213190779,0.50196,155.58,155.49,20.0]
[1723213191089,60.1736,155.67,155.5,43.68549]
[1723213191291,60.1736,155.67,155.51,20.0]
[1723213191292,6.4254,155.63,155.51,20.0]
[1723213191481,7.5307873,155.63,155.49,20.0]
[1723213191788,1.1053873,155.63,155.49,20.0]
[1723213191996,6.4265,155.61,155.49,20.0]
[1723213192169,6.4275,155.59,155.47,0.8492528]
[1723213192369,6.4279,155.57,155.47,0.8492528]
[1723213192577,44.7908773,155.58,155.47,0.8492528]
[1723213192578,45.25098,155.56,155.47,0.8492528]
[1723213192768,0.12549,155.56,155.47,0.8492528]
[1723213192989,0.12549,155.55,155.47,2.13526349]
[1723213193181,0.37647,155.56,155.48,1.28602713]
[1723213193182,0.25098,155.56,155.48,1.28602713]
[1723213193385,0.25098,155.56,155.49,1.28593412]
[1723213193882,66.6707,155.67,155.5,0.25098]
[1723213194080,66.6707,155.67,155.51,1.28551666]
[1723213194281,73.0949,155.67,155.51,1.28545073]
[1723213194599,6.4244,155.66,155.52,1.41089053]
[1723213194798,66.6707,155.67,155.51,65.0]
[1723213195003,1.1053873,155.64,155.51,20.0]
[1723213195184,1.1053873,155.64,155.49,20.0]
[1723213195496,6.4259,155.62,155.49,20.0]
[1723213195698,6.4259,155.62,155.5,45.0]
[1723213195886,265.91038754,155.65,155.51,21.28557973]
[1723213196190,259.2,155.65,155.53,15.7632]
[1723213196391,6.4242,155.66,155.54,20.0]
[1723213196599,6.4243,155.66,155.55,1.28547526]
[1723213196773,6.4243,155.66,155.54,20.0]
[1723213197191,6.4243,155.66,155.55,45.0]
[1723213197377,66.5975,155.67,155.55,45.0]
[1723213197690,1.1053873,155.66,155.56,20.0]
[1723213197870,66.5974,155.67,155.56,20.0]
[1723213198074,1.1053873,155.66,155.56,20.0]
[1723213198292,0.12549,155.61,155.53,15.7632]
[1723213198595,0.50196,155.61,155.54,20.0]
[1723213199109,0.25098,155.61,155.54,20.0]
[1723213199288,0.12549,155.66,155.55,1.28532586]
[1723213199592,6.4247,155.65,155.54,20.0]
[1723213199802,45.50196,155.64,155.54,20.0]
[1723213200291,43.56,155.7,155.56,6.5112]
[1723213200494,43.56,155.7,155.57,20.0]
[1723213200495,6.4247,155.65,155.57,20.0]
[1723213200690,60.7218873,155.7,155.57,20.0]
[1723213200907,6.4243,155.66,155.57,20.0]
[1723213201104,43.56,155.67,155.57,20.0]
[1723213201399,6.426,155.62,155.56,6.5112]
[1723213201698,0.37647,155.61,155.56,6.5112]
[1723213201994,0.37647,155.61,155.51,6.4786]
[1723213202202,0.12549,155.58,155.51,6.4786]
[1723213202385,0.50196,155.58,155.51,6.4786]
[1723213202592,45.0,155.62,155.51,6.4786]
[1723213202593,45.0,155.62,155.52,1.2857902]
[1723213202910,16.0579,155.69,155.52,1.2857902]
[1723213202911,6.4242,155.66,155.52,1.2857902]
[1723213203077,6.70505142,155.7,155.52,1.2857902]
[1723213203280,57.79323872,155.7,155.53,43.56]
[1723213203482,265.5316,155.72,155.56,43.56]
[1723213203684,6.4213,155.73,155.59,0.12549]
[1723213203898,1.1053873,155.73,155.6,6.5922]
[1723213204112,43.56,155.69,155.6,6.5922]
[1723213204277,43.56,155.69,155.54,6.5922]
[1723213204278,6.4238,155.67,155.54,6.5922]
[1723213204476,43.56,155.69,155.55,46.28510472]
[1723213204784,43.56,155.69,155.55,45.0]
[1723213205006,0.12549,155.64,155.54,6.5922]
[1723213205384,0.12549,155.68,155.55,46.28520629]
[1723213205685,6.4238,155.67,155.56,20.0]
[1723213206008,6.4224,155.71,155.57,1.28520124]
[1723213206203,44.6653873,155.7,155.57,20.0]
[1723213206506,6.4236,155.68,155.57,20.0]
[1723213206699,1.1053873,155.67,155.55,20.0]
[1723213206895,22.69146284,155.74,155.56,45.12549]
[1723213207208,6.6582,155.78,155.61,0.12549]
[1723213207389,50.2182,155.78,155.62,6.2854]
[1723213207711,6.4201,155.76,155.63,20.12549]
[1723213207894,7.5258873,155.75,155.63,65.0]
[1723213208082,7.5258873,155.75,155.63,20.0]
[1723213208282,44.6653873,155.75,155.63,20.0]
[1723213208502,6.4217,155.73,155.63,20.0]
[1723213208809,44.6653873,155.75,155.63,20.0]
[1723213209011,44.6653873,155.75,155.62,6.2854]
[1723213209012,43.56,155.72,155.62,6.2854]
[1723213209180,43.56,155.72,155.36,43.56]
[1723213209181,0.12549,155.67,155.57,6.6125]
[1723213209388,0.25098,155.68,155.57,6.6125]
[1723213209588,0.37647,155.68,155.57,6.6125]
[1723213209789,0.12549,155.67,155.57,6.6125]
[1723213210109,0.25098,155.68,155.57,7.89762501]
[1723213210317,0.12549,155.68,155.58,1.28493954]
[1723213210482,49.9805,155.75,155.59,43.81098]
[1723213210678,6.4211,155.74,155.6,45.0]
[1723213210881,1.1053873,155.74,155.57,6.6125]
[1723213211097,6.4226,155.7,155.58,65.0]
[1723213211385,43.56,155.75,155.59,1.28503312]
[1723213211597,56.46825217,155.78,155.61,43.56]
[1723213211901,49.9794,155.78,155.62,66.28450986]
[1723213212080,49.9794,155.78,155.62,65.0]
[1723213212280,281.1626,155.79,155.64,43.56]
[1723213212503,8.96573414,155.8,155.66,6.3324]
[1723213212702,43.56,155.81,155.67,20.0]
[1723213212910,43.56,155.81,155.67,65.0]
[1723213213289,318.2679,155.84,155.68,0.12549]
[1723213213511,302.76,155.84,155.68,0.50196]
[1723213214699,302.76,155.84,155.69,1.28390414]
[1723213214897,302.76,155.84,155.7,0.12549]
[1723213215093,302.76,155.84,155.71,1.28390372]
[1723213215412,21.8875,155.89,155.73,16.2339]
[1723213215413,43.56,155.87,155.73,16.2339]
[1723213215598,43.56,155.87,155.75,6.3324]
[1723213215803,43.56,155.87,155.76,21.28362475]
[1723213216191,43.56,155.87,155.77,1.28366366]
[1723213216614,6.4152,155.88,155.76,20.0]
[1723213216817,52.545555,155.9,155.77,1.2835624]
[1723213217107,1.1053873,155.89,155.76,20.0]
[1723213217323,6.4161,155.86,155.76,20.0]
[1723213217487,7.5218873,155.85,155.76,20.0]
[1723213217683,43.56,155.87,155.76,20.0]
[1723213218296,1.3563673,155.86,155.76,20.0]
[1723213218618,1.3563673,155.86,155.73,16.2339]
[1723213218619,6.54359,155.81,155.73,16.2339]
[1723213218818,0.12549,155.78,155.7,6.6395]
[1723213219106,0.25098,155.79,155.7,6.6395]
[1723213219309,0.12549,155.83,155.71,1.2840099]
[1723213219496,0.12549,155.8,155.7,6.6395]
[1723213219702,6.54389,155.8,155.7,6.6395]
[1723213219899,0.12549,155.78,155.7,6.6395]
[1723213220307,43.56,155.84,155.7,7.92348625]
[1723213220484,49.9756,155.87,155.71,1.28398625]
[1723213220690,1.1053873,155.86,155.7,50.1995]
[1723213220885,1.1053873,155.86,155.71,20.0]
[1723213221089,6.4166,155.85,155.71,20.0]
[1723213221319,6.4172,155.83,155.71,20.0]
[1723213221500,43.56,155.78,155.68,15.1838]
[1723213221697,46.3563673,155.77,155.66,6.5504]
[1723213221892,0.12549,155.76,155.66,6.5504]
[1723213222198,43.68549,155.75,155.63,16.4411]
[1723213222412,0.12549,155.73,155.63,16.4411]
[1723213222604,0.12549,155.76,155.64,43.56]
[1723213222929,0.12549,155.75,155.64,43.56]
[1723213223100,0.12549,155.75,155.64,1.28440303]
[1723213223421,0.12549,155.75,155.63,16.4411]
[1723213223625,0.12549,155.77,155.66,43.56]
[1723213223913,1.1053873,155.8,155.66,43.56]
[1723213224120,59.7636,155.84,155.67,45.0]
[1723213224301,43.56,155.84,155.69,50.1537]
[1723213224509,43.56,155.84,155.7,46.28388008]